fUST/lending_fUST_20240113
["ID","MTS","AMOUNT","RATE_DAILY","PERIOD"]
[311416506,1705079446566,-1683.96312961,0.00022263,3]
[311416507,1705079446575,-231.38,0.00022272,2]
[311416508,1705079446585,-500.0,0.00022273,2]
[311416509,1705079446594,-500.0,0.00022273,2]
[311416510,1705079446603,-500.0,0.00022547,2]
[311416511,1705079446613,-500.0,0.00022821,2]
[311416512,1705079446623,-225020.62230933,0.00022885,2]
[311416513,1705079449927,155.05892239,0.00020595,4]
[311416515,1705079473889,155.06047358,0.00020592,4]
[311416516,1705079491891,155.06047358,0.00020586,4]
[311416527,1705079635578,292.92042372,0.00022,4]
[311416529,1705079659590,292.92042372,0.00022,4]
[311416533,1705079677576,290.48173256,0.00022,4]
[311416607,1705079739622,155.05426899,0.00020592,4]
[311416639,1705079841480,50000.0,0.00029,30]
[311416642,1705079874654,155.06047358,0.00020592,4]
[311416654,1705079905262,50000.0,0.00029,30]
[311416809,1705080635385,-155.05737123,0.0001852,3]
[311416810,1705080635396,-1737.77333853,0.0001852,2]
[311416812,1705080635407,-219.02226915,0.00018521,2]
[311416813,1705080635420,-2030.72904445,0.00018521,2]
[311416815,1705080635431,-171.16873058,0.00020493,2]
[311416817,1705080635441,-6699.48,0.00020585,3]
[311416819,1705080635451,-250.63013147,0.00020585,3]
[311416821,1705080635463,-1273.11649996,0.00020585,3]
[311416886,1705080638526,-4059.15336857,0.00020585,3]
[311416887,1705080638536,-469.79591592,0.00020591,2]
[311416889,1705080638546,-671.84284078,0.00020593,2]
[311416891,1705080638556,-162.51375347,0.00020593,2]
[311416893,1705080638565,-309.87605268,0.00020593,2]
[311416895,1705080638574,-301.30095178,0.00020593,2]
[311416897,1705080638584,-1172.5308552,0.00020593,2]
[311416899,1705080638593,-285.50749151,0.00020593,2]
[311416900,1705080638603,-178.44106149,0.00020593,2]
[311416902,1705080638616,-253.55669293,0.00020593,2]
[311416904,1705080638639,-466.69842907,0.00020593,2]
[311416906,1705080638661,-360.7362932,0.00020593,2]
[311416908,1705080638685,-155.07442935,0.00020593,2]
[311416910,1705080638707,-178.51706094,0.00020593,2]
[311416912,1705080638729,-947.43868379,0.00020593,2]
[311416927,1705080638900,-322.83363774,0.00020593,2]
[311416929,1705080638910,-20861.46383375,0.00020593,2]
[311416931,1705080638920,-164.24940589,0.00020594,2]
[311416933,1705080638929,-4788.51765555,0.00020594,2]
[311416934,1705080638938,-2034.80072126,0.00020594,2]
[311416936,1705080638947,-27186.55984181,0.00020595,2]
[311416938,1705080638958,-2566.71909432,0.00020595,2]
[311416940,1705080638970,-3241.42909568,0.00020595,2]
[311417273,1705080643889,-1133.74871321,0.00020595,2]
[311417274,1705080643901,-955.65829492,0.00020595,2]
[311417275,1705080643913,-717.97801441,0.00020595,2]
[311417276,1705080643928,-1147.51610004,0.00020595,2]
[311417290,1705080644453,-8678.23573944,0.00020595,2]
[311417291,1705080644517,-434.18,0.00020595,2]
[311417843,1705080649462,-1745.09713206,0.00020595,2]
[311418495,1705081763942,95000.0,0.00029,30]
[311418601,1705081839701,-155.0,0.00018893,3]
[311418603,1705081839711,-4982.06984595,0.00018894,2]
[311418605,1705081839720,-1737.77333853,0.00018897,2]
[311418607,1705081839730,-521.10576847,0.00018898,2]
[311418609,1705081839739,-186.71658638,0.000189,2]
[311418611,1705081839749,-2880.37229063,0.00020169,2]
[311418614,1705081839765,-6767.63765637,0.00020169,2]
[311418616,1705081839775,-10847.71914692,0.00020595,2]
[311418618,1705081839784,-171.34836107,0.00021707,2]
[311418620,1705081839794,-3877.01,0.00021807,3]
[311418622,1705081839803,-4006.25,0.00021807,3]
[311418623,1705081839812,-3338.54,0.00021807,3]
[311418626,1705081839821,-13849.83763897,0.00021817,2]
[311418628,1705081839833,-2625.91516943,0.00021817,2]
[311418630,1705081839851,-1781.99121682,0.00021817,2]
[311418695,1705081841619,-805.87342317,0.00021817,2]
[311418696,1705081841637,-31083.03732055,0.00021817,2]
[311418697,1705081841647,-162.76933454,0.00021817,2]
[311418698,1705081841657,-2029.21708787,0.00021915,2]
[311418699,1705081841667,-299.262644,0.00021915,2]
[311418700,1705081841677,-618.09178602,0.00021915,2]
[311418701,1705081841687,-260.59423718,0.00021915,2]
[311418702,1705081841705,-1781.99121682,0.00021915,2]
[311418703,1705081841719,-1290.98227304,0.00021915,2]
[311418704,1705081841729,-155.01550155,0.00021915,2]
[311418705,1705081841739,-11848.77198757,0.00021916,2]
[311418706,1705081841749,-4879.00609917,0.00021917,2]
[311418707,1705081841759,-500.0,0.00021917,2]
[311418708,1705081841768,-500.0,0.00021917,2]
[311418709,1705081841778,-500.0,0.00021917,2]
[311418710,1705081841787,-500.0,0.00021917,2]
[311418711,1705081841797,-500.0,0.00021917,2]
[311418712,1705081841807,-500.0,0.00021917,2]
[311418713,1705081841816,-500.0,0.00021917,2]
[311418714,1705081841826,-500.0,0.00021917,2]
[311418715,1705081841835,-221.60693702,0.00021917,2]
[311418716,1705081841845,-200.0,0.00021917,2]
[311418717,1705081841855,-500.0,0.00021917,2]
[311418718,1705081841865,-500.0,0.00021917,2]
[311418719,1705081841876,-500.0,0.00021917,2]
[311418720,1705081841885,-500.0,0.00021917,2]
[311418721,1705081841895,-500.0,0.00021917,2]
[311418722,1705081841904,-500.0,0.00021917,2]
[311418723,1705081841914,-500.0,0.00021917,2]
[311418724,1705081841924,-500.0,0.00021917,2]
[311418725,1705081841934,-500.0,0.00021917,2]
[311418726,1705081841943,-500.0,0.00021917,2]
[311418727,1705081841954,-506.77755744,0.00021917,2]
[311418728,1705081841963,-500.0,0.00021917,2]
[311418729,1705081841973,-500.0,0.00021917,2]
[311418730,1705081841983,-497.89878031,0.00021917,2]
[311418731,1705081842137,-500.0,0.00021917,2]
[311418732,1705081842147,-500.49527847,0.00021917,2]
[311418733,1705081842156,-500.0,0.00021917,2]
[311418734,1705081842165,-500.0,0.00021917,2]
[311418735,1705081842175,-500.0,0.00021917,2]
[311418736,1705081842185,-500.0,0.00021917,2]
[311418737,1705081842194,-500.0,0.00021917,2]
[311418738,1705081842204,-500.0,0.00021917,2]
[311418739,1705081842214,-500.0,0.00021917,2]
[311418740,1705081842223,-500.0,0.00021917,2]
[311418741,1705081842233,-500.0,0.00021917,2]
[311418742,1705081842244,-500.0,0.00021917,2]
[311418743,1705081842255,-500.0,0.00021917,2]
[311418744,1705081842264,-500.0,0.00021917,2]
[311418745,1705081842273,-500.0,0.00021917,2]
[311418746,1705081842283,-200.17824159,0.00021917,2]
[311418747,1705081842292,-161.62947205,0.00021917,2]
[311418748,1705081842302,-500.0,0.00021917,2]
[311418749,1705081842313,-504.20120448,0.00021917,2]
[311418750,1705081842324,-500.0,0.00021917,2]
[311418751,1705081842333,-500.0,0.00021917,2]
[311418752,1705081842343,-500.0,0.00021917,2]
[311418753,1705081842354,-500.0,0.00021917,2]
[311418754,1705081842363,-500.0,0.00021917,2]
[311418755,1705081842373,-500.0,0.00021917,2]
[311418756,1705081842387,-500.0,0.00021917,2]
[311418757,1705081842397,-500.0,0.00021917,2]
[311418758,1705081842406,-346.47463783,0.00021917,2]
[311418759,1705081842416,-337.15639692,0.00021917,2]
[311418760,1705081842425,-500.0,0.00021917,2]
[311418761,1705081842436,-500.0,0.00021917,2]
[311418762,1705081842445,-500.0,0.00021917,2]
[311418763,1705081842454,-500.0,0.00021917,2]
[311418764,1705081842464,-500.50039917,0.00021917,2]
[311418765,1705081842474,-500.0,0.00021917,2]
[311418766,1705081842484,-500.0,0.00021917,2]
[311418767,1705081842493,-500.0,0.00021917,2]
[311418768,1705081842503,-500.0,0.00021917,2]
[311418769,1705081842512,-504.42727557,0.00021917,2]
[311418770,1705081842522,-627.1533721,0.00021917,2]
[311418771,1705081842532,-500.0,0.00021917,2]
[311418772,1705081842541,-500.0,0.00021917,2]
[311418773,1705081842550,-500.0,0.00021917,2]
[311418774,1705081842559,-500.0,0.00021917,2]
[311418775,1705081842569,-500.0,0.00021917,2]
[311418776,1705081842579,-500.0,0.00021917,2]
[311418777,1705081842588,-500.0,0.00021917,2]
[311418778,1705081842598,-278.63115489,0.00021917,2]
[311418779,1705081842607,-501.04927739,0.00021917,2]
[311418780,1705081842617,-500.0,0.00021917,2]
[311418781,1705081842628,-500.0,0.00021917,2]
[311418782,1705081842637,-500.0,0.00021917,2]
[311418783,1705081842647,-500.0,0.00021917,2]
[311418784,1705081842656,-500.0,0.00021917,2]
[311418785,1705081842666,-469.4337714,0.00021917,2]
[311418786,1705081842676,-500.0,0.00021917,2]
[311418787,1705081842685,-500.0,0.00021917,2]
[311418788,1705081842695,-500.0,0.00021917,2]
[311418789,1705081842704,-452.7,0.00021917,2]
[311418790,1705081842713,-500.0,0.00021917,2]
[311418791,1705081842722,-500.0,0.00021917,2]
[311418792,1705081842732,-275.98554993,0.00021917,2]
[311418796,1705081843339,-224.01445007,0.00021917,2]
[311418798,1705081843348,-500.0,0.00021917,2]
[311418799,1705081843358,-500.0,0.00021917,2]
[311418800,1705081843367,-500.0,0.00021917,2]
[311418801,1705081843379,-516.84449583,0.00021917,2]
[311418802,1705081843388,-200.23172933,0.00021917,2]
[311418803,1705081843397,-168.28933158,0.00021917,2]
[311418804,1705081843407,-500.0,0.00021917,2]
[311418806,1705081843418,-500.0,0.00021917,2]
[311418807,1705081843428,-500.0,0.00021917,2]
[311418808,1705081843439,-381.12520122,0.00021917,2]
[311418812,1705081843788,-4982.06984595,0.00018896,2]
[311418814,1705081843797,-118.87479878,0.00021917,2]
[311418816,1705081843807,-500.0,0.00021917,2]
[311418818,1705081843816,-605.14027275,0.00021917,2]
[311418820,1705081843826,-500.0,0.00021917,2]
[311418822,1705081843835,-500.0,0.00021917,2]
[311418823,1705081843844,-500.0,0.00021917,2]
[311418824,1705081843854,-500.0,0.00021917,2]
[311418825,1705081843863,-500.0,0.00021917,2]
[311418826,1705081843872,-17.51508252,0.00021917,2]
[311418827,1705081843893,-482.48491748,0.00021917,2]
[311418828,1705081843904,-500.0,0.00021917,2]
[311418829,1705081843913,-500.0,0.00021917,2]
[311418830,1705081843922,-340.68909797,0.00021917,2]
[311418831,1705081843931,-500.0,0.00021917,2]
[311418832,1705081843939,-500.0,0.00021917,2]
[311418833,1705081843948,-500.0,0.00021917,2]
[311418834,1705081843958,-500.0,0.00021917,2]
[311418835,1705081843967,-500.0,0.00021917,2]
[311418836,1705081843976,-502.88239032,0.00021917,2]
[311418837,1705081843986,-502.61811935,0.00021917,2]
[311418838,1705081843995,-500.0,0.00021917,2]
[311418839,1705081844006,-500.0,0.00021917,2]
[311418840,1705081844015,-500.0,0.00021917,2]
[311418841,1705081844026,-265.0895561,0.00021917,2]
[311418842,1705081844036,-500.0,0.00021917,2]
[311418843,1705081844045,-500.0,0.00021917,2]
[311418844,1705081844060,-500.0,0.00021917,2]
[311418845,1705081844070,-500.0,0.00021917,2]
[311418846,1705081844079,-500.0,0.00021917,2]
[311418847,1705081844089,-500.0,0.00021917,2]
[311418848,1705081844099,-595.56,0.00021917,2]
[311418849,1705081844110,-500.0,0.00021917,2]
[311418850,1705081844119,-500.0,0.00021917,2]
[311418851,1705081844130,-500.0,0.00021917,2]
[311418852,1705081844140,-500.0,0.00021917,2]
[311418853,1705081844150,-500.0,0.00021917,2]
[311418854,1705081844160,-500.0,0.00021917,2]
[311418855,1705081844170,-500.0,0.00021917,2]
[311418856,1705081844184,-500.0,0.00021917,2]
[311418857,1705081844193,-500.0,0.00021917,2]
[311418858,1705081844203,-500.0,0.00021917,2]
[311418859,1705081844212,-500.0,0.00021917,2]
[311418860,1705081844222,-579.01830516,0.00021917,2]
[311418861,1705081844232,-500.0,0.00021917,2]
[311418862,1705081844241,-504.46218806,0.00021917,2]
[311418863,1705081844250,-500.0,0.00021917,2]
[311418864,1705081844260,-500.0,0.00021917,2]
[311418865,1705081844270,-504.5661768,0.00021917,2]
[311418866,1705081844279,-500.0,0.00021917,2]
[311418867,1705081844288,-500.0,0.00021917,2]
[311418868,1705081844298,-500.0,0.00021917,2]
[311418869,1705081844307,-500.0,0.00021917,2]
[311418870,1705081844317,-297.81780328,0.00021917,2]
[311418871,1705081844326,-500.0,0.00021917,2]
[311418872,1705081844335,-500.0,0.00021917,2]
[311418873,1705081844345,-407.75411898,0.00021917,2]
[311418874,1705081844354,-500.0,0.00021917,2]
[311418875,1705081844363,-500.0,0.00021917,2]
[311418876,1705081844373,-500.0,0.00021917,2]
[311418877,1705081844384,-500.0,0.00021917,2]
[311418878,1705081844393,-1496.75,0.00021917,2]
[311418879,1705081844404,-500.0,0.00021917,2]
[311418880,1705081844413,-500.0,0.00021917,2]
[311418881,1705081844423,-502.00356295,0.00021917,2]
[311418882,1705081844432,-500.0,0.00021917,2]
[311418883,1705081844442,-500.0,0.00021917,2]
[311418884,1705081844452,-500.0,0.00021917,2]
[311418885,1705081844462,-500.0,0.00021917,2]
[311418886,1705081844471,-500.0,0.00021917,2]
[311418887,1705081844481,-500.0,0.00021917,2]
[311418888,1705081844491,-500.0,0.00021917,2]
[311418889,1705081844501,-500.0,0.00021917,2]
[311418890,1705081844510,-500.0,0.00021917,2]
[311418891,1705081844520,-500.0,0.00021917,2]
[311418892,1705081844530,-500.0,0.00021917,2]
[311418893,1705081844540,-500.0,0.00021917,2]
[311418894,1705081844549,-500.0,0.00021917,2]
[311418895,1705081844558,-500.0,0.00021917,2]
[311418896,1705081844568,-500.0,0.00021917,2]
[311418897,1705081844578,-500.0,0.00021917,2]
[311418898,1705081844587,-500.0,0.00021917,2]
[311418899,1705081844597,-500.0,0.00021917,2]
[311418900,1705081844607,-500.0,0.00021917,2]
[311418901,1705081844617,-500.0,0.00021917,2]
[311418902,1705081844626,-462.88263616,0.00021917,2]
[311418903,1705081845219,-37.11736384,0.00021917,2]
[311418904,1705081845228,-500.0,0.00021917,2]
[311418905,1705081845237,-500.0,0.00021917,2]
[311418906,1705081845246,-437.01491593,0.00021917,2]
[311418907,1705081845256,-1339.1,0.00021917,2]
[311418908,1705081845266,-41.49362819,0.00021917,2]
[311418909,1705081845278,-458.50637181,0.00021917,2]
[311418910,1705081845287,-500.0,0.00021917,2]
[311418911,1705081845297,-500.0,0.00021917,2]
[311418912,1705081845307,-500.0,0.00021917,2]
[311418913,1705081845316,-302.28035919,0.00021917,2]
[311418923,1705081846820,-197.71964081,0.00021917,2]
[311418924,1705081846829,-600.0,0.00021917,2]
[311418925,1705081846838,-500.0,0.00021917,2]
[311418926,1705081846847,-500.0,0.00021917,2]
[311418927,1705081846857,-500.0,0.00021917,2]
[311418928,1705081846872,-500.0,0.00021917,2]
[311418929,1705081846889,-525.22608399,0.00021917,2]
[311418930,1705081846901,-500.0,0.00021917,2]
[311418931,1705081846910,-500.0,0.00021917,2]
[311418932,1705081846920,-500.0,0.00021917,2]
[311418933,1705081846930,-500.0,0.00021917,2]
[311418934,1705081846940,-500.0,0.00021917,2]
[311418935,1705081846950,-500.0,0.00021917,2]
[311418936,1705081846959,-500.0,0.00021917,2]
[311418937,1705081846969,-500.0,0.00021917,2]
[311418938,1705081846979,-656.36,0.00021917,2]
[311418939,1705081846989,-500.0,0.00021917,2]
[311418940,1705081846998,-500.0,0.00021917,2]
[311418941,1705081847008,-500.0,0.00021917,2]
[311418942,1705081847018,-500.0,0.00021917,2]
[311418943,1705081847029,-500.0,0.00021917,2]
[311418944,1705081847039,-500.0,0.00021917,2]
[311418945,1705081847049,-500.0,0.00021917,2]
[311418946,1705081847060,-286.77903007,0.00021917,2]
[311418947,1705081847070,-578.09,0.00021917,2]
[311418948,1705081847081,-500.0,0.00021917,2]
[311418949,1705081847219,-500.0,0.00021917,2]
[311418950,1705081847230,-500.0,0.00021917,2]
[311418951,1705081847239,-500.0,0.00021917,2]
[311418952,1705081847248,-601.70361142,0.00021917,2]
[311418953,1705081847257,-500.0,0.00021917,2]
[311418954,1705081847268,-313.77737342,0.00021917,2]
[311418955,1705081847277,-500.0,0.00021917,2]
[311418956,1705081847287,-500.0,0.00021917,2]
[311418957,1705081847296,-500.0,0.00021917,2]
[311418958,1705081847305,-500.0,0.00021917,2]
[311418959,1705081847314,-500.0,0.00021917,2]
[311418960,1705081847323,-500.0,0.00021917,2]
[311418961,1705081847332,-500.0,0.00021917,2]
[311418962,1705081847341,-500.0,0.00021917,2]
[311418963,1705081847351,-500.0,0.00021917,2]
[311418964,1705081847360,-500.0,0.00021917,2]
[311418965,1705081847370,-500.0,0.00021917,2]
[311418966,1705081847382,-500.0,0.00021917,2]
[311418967,1705081847391,-500.0,0.00021917,2]
[311418968,1705081847401,-500.0,0.00021917,2]
[311418969,1705081847411,-468.15575133,0.00021917,2]
[311418970,1705081847421,-500.0,0.00021917,2]
[311418971,1705081847433,-500.0,0.00021917,2]
[311418972,1705081847442,-500.0,0.00021917,2]
[311418973,1705081847451,-500.0,0.00021917,2]
[311418974,1705081847461,-500.0,0.00021917,2]
[311418975,1705081847470,-500.0,0.00021917,2]
[311418976,1705081847480,-200.17361707,0.00021917,2]
[311418977,1705081847490,-509.14169102,0.00021917,2]
[311418978,1705081847499,-500.0,0.00021917,2]
[311418979,1705081847508,-500.0,0.00021917,2]
[311418980,1705081847518,-166.666666,0.00021918,2]
[311418981,1705081847527,-2068.25365203,0.0002195,2]
[311418982,1705081847537,-998.40980957,0.00021997,2]
[311418983,1705081847546,-425.12426258,0.00022,2]
[311418984,1705081847556,-3937.50128455,0.00022,2]
[311418985,1705081847565,-294.44703932,0.00022191,2]
[311418986,1705081847575,-500.0,0.00022191,2]
[311418987,1705081847585,-500.0,0.00022191,2]
[311418988,1705081847595,-500.0,0.00022191,2]
[311418989,1705081847604,-500.0,0.00022191,2]
[311418990,1705081847614,-113.5770888,0.00022191,2]
[311418991,1705081856607,155.0,0.00021916,4]
[311419509,1705083003028,564.16201128,0.00023,4]
[311419557,1705083036028,500.0,0.00023,4]
[311419620,1705083037993,-4461.06984595,0.00019943,2]
[311419622,1705083038003,-155.00775039,0.00019943,3]
[311419624,1705083038012,-10506.50980465,0.00019944,2]
[311419626,1705083038022,-2809.82048294,0.00019945,2]
[311419628,1705083038031,-1019.46116191,0.00019967,2]
[311419630,1705083038040,-171.34836106,0.00021704,2]
[311419632,1705083038050,-162.76933454,0.00021717,2]
[311419634,1705083038059,-8103.95,0.00021796,3]
[311419636,1705083038069,-155.01550155,0.00021802,2]
[311419638,1705083038078,-1290.98227304,0.00021804,2]
[311419640,1705083038087,-11848.77198757,0.00021804,2]
[311419642,1705083038096,-260.59423718,0.00021804,2]
[311419644,1705083038106,-4879.00609917,0.00021804,2]
[311419646,1705083038115,-299.262644,0.00021804,2]
[311419648,1705083038125,-618.09178602,0.00021805,2]
[311419650,1705083038136,-2029.21708787,0.00021805,2]
[311419652,1705083038145,-1781.99121682,0.00021805,2]
[311419654,1705083038154,-14351.18,0.00021806,3]
[311419656,1705083038163,-17614.26042534,0.00021816,2]
[311419786,1705083040917,-11959.31,0.00021806,3]
[311419787,1705083040927,-57696.42111372,0.00021816,2]
[311419788,1705083040936,-25854.84059385,0.00021817,2]
[311419789,1705083040986,-3592.46003286,0.00021817,2]
[311419790,1705083040997,-13043.3104811,0.00021817,2]
[311419791,1705083041037,-17103.86764487,0.00021817,2]
[311419792,1705083041047,-151.0,0.00021917,2]
[311419793,1705083041057,-629.59847,0.00021917,2]
[311419794,1705083041067,-629.59847,0.00021917,2]
[311419795,1705083041076,-500.0,0.00021917,2]
[311419796,1705083041085,-500.0,0.00021917,2]
[311419797,1705083041095,-161.62947205,0.00021917,2]
[311419798,1705083041104,-500.0,0.00021917,2]
[311419799,1705083041114,-500.0,0.00021917,2]
[311419800,1705083041122,-200.17824159,0.00021917,2]
[311419801,1705083041132,-500.0,0.00021917,2]
[311419802,1705083041141,-337.15639692,0.00021917,2]
[311419803,1705083041151,-500.0,0.00021917,2]
[311419804,1705083041160,-500.0,0.00021917,2]
[311419805,1705083041169,-500.0,0.00021917,2]
[311419806,1705083041178,-345.42784496,0.00021917,2]
[311419807,1705083041192,-154.57215504,0.00021917,2]
[311419808,1705083041201,-500.0,0.00021917,2]
[311419809,1705083041211,-500.0,0.00021917,2]
[311419810,1705083041220,-500.0,0.00021917,2]
[311419811,1705083041230,-500.0,0.00021917,2]
[311419812,1705083041240,-500.0,0.00021917,2]
[311419813,1705083041249,-497.89878031,0.00021917,2]
[311419814,1705083041259,-500.0,0.00021917,2]
[311419815,1705083041268,-518.16143272,0.00021917,2]
[311419816,1705083041278,-500.0,0.00021917,2]
[311419817,1705083041288,-469.4337714,0.00021917,2]
[311419818,1705083041297,-500.0,0.00021917,2]
[311419819,1705083041307,-500.0,0.00021917,2]
[311419820,1705083041317,-500.0,0.00021917,2]
[311419821,1705083041325,-500.0,0.00021917,2]
[311419822,1705083041335,-500.0,0.00021917,2]
[311419823,1705083041344,-500.0,0.00021917,2]
[311419824,1705083041353,-500.49527847,0.00021917,2]
[311419825,1705083041363,-500.0,0.00021917,2]
[311419826,1705083041372,-500.0,0.00021917,2]
[311419827,1705083041382,-95.46963029,0.00021917,2]
[311419834,1705083042916,-404.53036971,0.00021917,2]
[311419836,1705083042925,-500.0,0.00021917,2]
[311419837,1705083043055,-500.0,0.00021917,2]
[311419838,1705083043064,-502.13157992,0.00021917,2]
[311419839,1705083043073,-500.0,0.00021917,2]
[311419840,1705083043082,-500.0,0.00021917,2]
[311419841,1705083043092,-500.0,0.00021917,2]
[311419842,1705083043101,-500.0,0.00021917,2]
[311419843,1705083043110,-500.0,0.00021917,2]
[311419844,1705083043119,-190.51976903,0.00021917,2]
[311419845,1705083043131,-309.48023097,0.00021917,2]
[311419846,1705083043140,-500.0,0.00021917,2]
[311419847,1705083043150,-500.0,0.00021917,2]
[311419848,1705083043159,-500.0,0.00021917,2]
[311419849,1705083043168,-500.0,0.00021917,2]
[311419850,1705083043177,-500.0,0.00021917,2]
[311419851,1705083043186,-500.0,0.00021917,2]
[311419852,1705083043195,-503.86688486,0.00021917,2]
[311419853,1705083043204,-520.31821242,0.00021917,2]
[311419854,1705083043213,-528.6586103,0.00021917,2]
[311419855,1705083043223,-500.0,0.00021917,2]
[311419856,1705083043232,-283.42872033,0.00021917,2]
[311419857,1705083043241,-500.0,0.00021917,2]
[311419858,1705083043250,-504.20120448,0.00021917,2]
[311419859,1705083043259,-534.86153431,0.00021917,2]
[311419860,1705083043268,-500.0,0.00021917,2]
[311419861,1705083043277,-200.31408391,0.00021917,2]
[311419862,1705083043286,-500.0,0.00021917,2]
[311419863,1705083043295,-500.0,0.00021917,2]
[311419864,1705083043306,-500.0,0.00021917,2]
[311419865,1705083043315,-500.0,0.00021917,2]
[311419866,1705083043324,-600.97778314,0.00021917,2]
[311419867,1705083043334,-500.0,0.00021917,2]
[311419868,1705083043343,-346.47463783,0.00021917,2]
[311419869,1705083043353,-500.0,0.00021917,2]
[311419870,1705083043362,-500.0,0.00021917,2]
[311419871,1705083043371,-157.5038137,0.00021917,2]
[311419872,1705083043380,-500.0,0.00021917,2]
[311419873,1705083043389,-500.0,0.00021917,2]
[311419874,1705083043398,-500.0,0.00021917,2]
[311419875,1705083043408,-500.0,0.00021917,2]
[311419876,1705083043417,-148.0035613,0.00021917,2]
[311419900,1705083045907,-351.9964387,0.00021917,2]
[311419901,1705083045917,-500.0,0.00021917,2]
[311419902,1705083045926,-500.50039917,0.00021917,2]
[311419903,1705083045935,-500.0,0.00021917,2]
[311419904,1705083045944,-500.0,0.00021917,2]
[311419905,1705083045952,-500.0,0.00021917,2]
[311419906,1705083045961,-500.0,0.00021917,2]
[311419907,1705083045970,-500.0,0.00021917,2]
[311419908,1705083045979,-504.42727557,0.00021917,2]
[311419909,1705083045988,-184.13370995,0.00021917,2]
[311419910,1705083045997,-500.0,0.00021917,2]
[311419911,1705083046006,-627.1533721,0.00021917,2]
[311419912,1705083046014,-500.0,0.00021917,2]
[311419913,1705083046023,-502.14628969,0.00021917,2]
[311419914,1705083046032,-500.0,0.00021917,2]
[311419915,1705083046041,-310.33962096,0.00021917,2]
[311419917,1705083046053,-189.66037904,0.00021917,2]
[311419918,1705083046063,-500.0,0.00021917,2]
[311419920,1705083046073,-500.0,0.00021917,2]
[311419923,1705083046082,-165.5381675,0.00021917,2]
[311419925,1705083046091,-500.0,0.00021917,2]
[311419927,1705083046100,-500.0,0.00021917,2]
[311419929,1705083046108,-285.55276751,0.00021917,2]
[311419931,1705083046120,-216.07223058,0.00021917,2]
[311419932,1705083046129,-350.7271178,0.00021917,2]
[311419933,1705083046140,-149.2728822,0.00021917,2]
[311419934,1705083046149,-465.78510027,0.00021917,2]
[311419935,1705083046158,-501.04927739,0.00021917,2]
[311419936,1705083046167,-500.73987157,0.00021917,2]
[311419937,1705083046176,-503.17641592,0.00021917,2]
[311419938,1705083046186,-500.0,0.00021917,2]
[311419939,1705083046196,-500.0,0.00021917,2]
[311419940,1705083046205,-386.1751943,0.00021917,2]
[311419950,1705083049458,500.0,0.00023,4]
[311419951,1705083052754,155.00775039,0.00021916,4]
[311420016,1705084182019,154.84515485,0.00014925,2]
[311420084,1705084238028,-155.01860223,0.00019688,3]
[311420085,1705084238040,-1990.2662791,0.00021635,3]
[311420091,1705084238083,-2815.9137209,0.00021635,3]
[311420093,1705084238092,-9165.06,0.00021635,3]
[311420095,1705084238101,-466.69842907,0.00021644,2]
[311420097,1705084238110,-19832.35999552,0.00021644,2]
[311420099,1705084238119,-27478.13802889,0.00021645,2]
[311420191,1705084240939,-861.05260702,0.00019687,2]
[311420192,1705084240949,-512.11784423,0.00021645,2]
[311420193,1705084240961,-6322.56977104,0.00021645,2]
[311420194,1705084240972,-3606.27720025,0.00021645,2]
[311420195,1705084240983,-10365.08171508,0.00021645,2]
[311420199,1705084241023,-1715.81544051,0.00021645,2]